Cogmind - Beta 14 @@@ ROGUE MODE // 2024.09.03 @ 17:26:37 Player: OctagonalPrism Result: Destroyed by P-60 Hacker with Shock Rifle Performance ------------- Evolutions (1) 500 Regions Visited (5) 1000 Robots Destroyed (69) 345 Value Destroyed (1889) 1889 Prototype IDs (27) 540 Alien Tech Used (0) 0 Bonus (470) 470 TOTAL SCORE: 4744 Bonus ------- High Alert Combat Kills 142 Follower Combat Kills 108 Aligned with FarCom 300 Friendly Fire -80 Cogmind --------- Core Integrity 0/400 Matter 152/300 Energy 100/100 System Corruption 4% Temperature Cool (0) Movement Rolling (90) Location -9/Exiles Parts ------- > --- POWER (1) -------- (None) > --- PROPULSION (2) --- Improved Treads Armored Wheel > --- UTILITY (4) ------ Cooling System (fused) Small Storage Unit > --- WEAPON (2) ------- Grenade Launcher > --- INVENTORY (8) ---- Light Angular Momentum Engine Compact Battery (200) Improved Terrain Scanner ECM Suite Longsword +1 Peak State ------------ > --- POWER ------------ Improved Ion Engine > --- PROPULSION ------- Improved Treads Improved Treads > --- UTILITY ---------- Improved Heat Sink Small Storage Unit Structural Scanner Hacking Suite > --- WEAPON ----------- Beamcaster Heavy Assault Rifle > --- INVENTORY -------- Light Angular Momentum Engine Armored Wheel Improved Terrain Scanner ECM Suite Pulse Rifle Pulse Rifle Grenade Launcher Mace [Rating: 23] Favorites ----------- Power Improved Ion Engine Engine Improved Ion Engine Power Core Light Nuclear Core Propulsion Improved Treads Treads Improved Treads Wheel Wheel Flight Unit Flight Unit Utility Small Storage Unit Device Structural Scanner Storage Small Storage Unit Hackware Hacking Suite Protection Light Armor Plating Weapon Heavy Assault Rifle Energy Gun Beamcaster Energy Cannon Guided Plasma Cannon Ballistic Gun Heavy Assault Rifle Launcher Grenade Launcher Impact Weapon Mace Build | -11 -10 -10 -9 -9 -9 ------- Run | Yrd Mat Min Mat Min Exi Slots Evolved 2 | . . . 2 . . Power . | . . . . . . Propulsion . | . . . . . . Utility 2 | . . . 2 . . Weapon . | . . . . . . Parts Attached 38 | 6 . 7 21 . 4 Power 5 | 1 . 1 3 . . Engine 4 | 1 . . 3 . . Core 1 | . . 1 . . . Reactor . | . . . . . . Propulsion 13 | 2 . 4 6 . 1 Treads 8 | 2 . . 6 . . Leg . | . . . . . . Wheel 3 | . . 2 . . 1 Hover . | . . . . . . Flight 2 | . . 2 . . . Utility 7 | 1 . . 6 . . Device 4 | . . . 4 . . Storage 1 | 1 . . . . . Processor . | . . . . . . Hackware 1 | . . . 1 . . Protection 1 | . . . 1 . . Artifact . | . . . . . . Weapon 13 | 2 . 2 6 . 3 Energy Gun 5 | 1 . . 3 . 1 Energy Cannon 1 | . . . . . 1 Ballistic Gun 5 | 1 . 2 2 . . Ballistic Cannon . | . . . . . . Launcher 1 | . . . . . 1 Special Weapon . | . . . . . . Impact Weapon 1 | . . . 1 . . Slashing Weapon . | . . . . . . Piercing Weapon . | . . . . . . Special Melee Weapon . | . . . . . . Unidentified Prototypes . | . . . . . . Parts Lost 14 | . . 6 5 . 3 Power 2 | . . 1 . . 1 Propulsion 5 | . . 3 1 . 1 Utility 3 | . . . 3 . . Weapon 4 | . . 2 1 . 1 Highest Loss Streak 3 | . . 3 2 . 3 To Critical Strikes . | . . . . . . Average Slot Usage (%) 84 | . 85 66 90 88 68 Engine 9 | . 14 3 10 11 10 Treads 19 | . 28 3 20 22 20 Wheel 1 | . . 7 1 . . Flight 1 | . . 8 . . . Device 14 | . . . 18 22 19 Storage 11 | . 14 14 11 11 11 Hackware 2 | . . . 3 . . Protection 1 | . . . 1 . . Energy Gun 7 | . 14 . 8 11 2 Ballistic Gun 12 | . 14 27 11 11 1 Peak Build Rating 23 | 6 6 8 23 19 20 Average Rating 13 | 5 6 4 18 19 13 On Entrance 9 | . 6 6 8 19 19 Naked Turns . | . . . . . . Heaviest Build 25 | 14 14 14 25 23 23 Greatest Support 46 | 40 40 20 46 46 46 Greatest Overweight (x) 7 | . . 2 7 . . Average Overweight (x) . | . . . . . . Largest Inventory Capacity 8 | 8 8 8 8 8 8 Average Capacity 7 | 7 8 8 8 8 8 Most Carried 8 | 2 5 5 8 8 8 Average Carried 5 | 1 4 3 7 8 7 Final Capacity 8 | 8 8 8 8 8 8 Final Carried 8 | 2 5 3 8 8 5 Class Distribution -------------------- 59% | Scavenger-Mutant 40% | Mutant Dominant Class ---------------- Mutant | -10/Materials Mutant | -10/Mines Scavenger-Mutant | -9/Materials Scavenger-Mutant | -9/Mines Mutant | -9/Exiles Resources | -11 -10 -10 -9 -9 -9 ----------- Run | Yrd Mat Min Mat Min Exi Matter Collected 1010 | 204 116 244 434 12 . Remotely . | . . . . . . Salvage Created 2168 | 100 340 176 1345 38 169 Parts 162 | 10 23 7 106 5 11 Haulers Intercepted . | . . . . . . Recyclers Shooed . | . . . . . . Parts Field Recycled . | . . . . . . Retrieved Matter . | . . . . . . Parts Self-Destructed . | . . . . . . Prevented . | . . . . . . Kills | -11 -10 -10 -9 -9 -9 ------- Run | Yrd Mat Min Mat Min Exi Combat Hostiles Destroyed 50 | . 7 4 30 3 6 Melee 1 | . . . 1 . . Guns 42 | . 6 4 27 3 2 AOE 5 | . 1 . . . 4 Classes Destroyed 10 | 1 2 2 3 . 2 Builder 4 | . . 1 3 . . Tunneler 5 | 5 . . . . . Operator 4 | . . . 4 . . Watcher 7 | . 2 . 5 . . Swarmer 10 | . . . 7 3 . Grunt 28 | . 7 3 15 . 3 Sentry 8 | . . . 8 . . Demolisher 1 | . . . . . 1 Hunter 2 | . . . . . 2 Assembled 1 | . . 1 . . . Best Kill Streak 5 | 3 2 2 4 3 5 Combat Bots Only 5 | . 2 2 4 3 5 Max Kills in Single Turn 2 | 1 1 1 2 1 2 Gunslinging . | . . . . . . Exploded 2 | . 1 . . . 2 Melee 1 | . . . 1 . . Uniques/NPCs Destroyed . | . . . . . . Combat | -11 -10 -10 -9 -9 -9 -------- Run | Yrd Mat Min Mat Min Exi Hostile Shots Fired 290 | . 32 47 132 7 72 Missed 97 | . 9 9 43 . 36 Damage Taken 2553 | . 323 499 1034 54 643 Core 504 | . 26 64 199 13 202 Absorbed by Shields . | . . . . . . Regen/Repaired (Parts) 66 | . . . 66 . . Core Remaining (%) 82 | 100 . 64 . . . Volleys Fired 162 | 10 28 26 79 6 13 Largest 2 | 2 2 2 2 2 2 Hottest 98 | 60 60 60 98 98 93 Shots Fired 312 | 20 56 52 154 12 18 Gun 303 | 20 56 52 154 12 9 Cannon . | . . . . . . Launcher 9 | . . . . . 9 Special . | . . . . . . Kinetic 177 | 10 28 50 83 6 . Thermal 86 | . . . 71 6 9 Explosive 9 | . . . . . 9 Electromagnetic 40 | 10 28 2 . . . Robot Hit Streak 20 | 7 10 12 20 3 3 Robot Miss Streak 5 | 2 5 4 3 2 3 Penetration Max . | . . . . . . Secondary Targets 1 | . . . 1 . . Max Gunslinging Chain 1 | . . . 1 . . Shots Hit Robots 203 | 12 31 36 111 6 7 Core Hits 95 | 5 16 10 50 3 11 Critical Kills 1 | . . . 1 . . Critical Parts Destroyed 2 | . . 1 . 1 . Critical Strikes 8 | . . 1 4 2 1 Burn 5 | . . . 3 1 1 Destroy 3 | . . 1 1 1 . Melee Attacks 17 | . . . 17 . . Impact 17 | . . . 17 . . Slashing . | . . . . . . Piercing . | . . . . . . Sneak Attacks . | . . . . . . Combat Hostiles . | . . . . . . Follow-up Attacks . | . . . . . . Damage Inflicted 3748 | 155 514 452 2088 123 416 Guns 3118 | 155 416 452 1902 123 70 Cannons . | . . . . . . Explosions 444 | . 98 . . . 346 Melee 186 | . . . 186 . . Ramming . | . . . . . . Kinetic 1627 | 54 183 439 892 59 . Thermal 1242 | . 98 . 1010 64 70 Explosive 346 | . . . . . 346 Electromagnetic 347 | 101 233 13 . . . Impact 186 | . . . 186 . . Slashing . | . . . . . . Piercing . | . . . . . . Highest Corruption 3 | . . . 1 1 3 Average Corruption 1 | . . . 1 1 1 Corruption Purged . | . . . . . . Corruption Blocked . | . . . . . . Effects 15 | . . . 4 5 6 Message Errors 3 | . . . 1 . 2 Matter Fused 3 | . . . . 2 1 Heat Flow Errors 2 | . . . 1 1 . Energy Discharges 2 | . . . . 1 1 Parts Rejected 1 | . . . . . 1 Parts Fused 1 | . . . 1 . . Data Loss (minor) 2 | . . . 1 1 . Misfires 1 | . . . . . 1 Overload Shots . | . . . . . . Overflow Damage 69 | . 24 . 40 . 5 Projectiles . | . . . . . . Explosions 29 | . 24 . . . 5 Melee 40 | . . . 40 . . Knockbacks 1 | . . . 1 . . Impact 1 | . . . 1 . . Kinetic . | . . . . . . Secondary . | . . . . . . Self-Inflicted Damage 64 | . 52 . . . 12 Shots 2 | . 1 . . . 1 Rammed . | . . . . . . Targets Rammed . | . . . . . . Kicked . | . . . . . . Crushed . | . . . . . . Highest Temperature 246 | . 36 58 246 137 . Average Temperature 30 | . 15 26 37 73 . Received Heat Transfer 753 | . 150 228 375 . . Siege Activations . | . . . . . . Robots Corrupted 2 | . . . 2 . . Combat Hostiles 2 | . . . 2 . . Parts Fried 1 | . . . 1 . . Impact Corruptions 4 | . . . 4 . . Robots Melted . | . . . . . . Combat Hostiles . | . . . . . . Parts Melted 4 | . . . 4 . . Heat Transferred 2455 | . 50 . 1998 185 222 Parts Sabotaged . | . . . . . . Parts Stolen . | . . . . . . Parts Stripped . | . . . . . . Power Chain Reactions 2 | . 2 . . . . Alert | -11 -10 -10 -9 -9 -9 ------- Run | Yrd Mat Min Mat Min Exi Peak Influence 613 | 25 326 205 613 287 . Initial 217 | . 16 74 . 217 . Average 298 | 12 148 110 417 286 . Maximum Alert Level 2 | . 1 1 2 1 . Low Security (%) 35 | 100 76 85 12 . . Level 1 25 | . 23 14 17 100 . Level 2 39 | . . . 70 . . Level 3 . | . . . . . . Level 4 . | . . . . . . Level 5 . | . . . . . . High Security . | . . . . . . Max Security . | . . . . . . Squads Dispatched 11 | . 4 . 7 . . Investigation 9 | . 3 . 6 . . Extermination . | . . . . . . Reinforcement 2 | . 1 . 1 . . Assault . | . . . . . . Garrison . | . . . . . . Intercept . | . . . . . . Searches Triggered . | . . . . . . Construction Impeded . | . . . . . . Haulers Reinforced . | . . . . . . Active Scanning Responses . | . . . . . . Cargo Convoy Interrupts . | . . . . . . Stealth | -11 -10 -10 -9 -9 -9 --------- Run | Yrd Mat Min Mat Min Exi Distress Signals 6 | . 1 . 5 . . Communications Jammed . | . . . . . . Distress Signals . | . . . . . . Times Spotted 92 | . 18 12 49 2 11 Peak Tracking Total 6 | . 5 3 4 2 6 Tactical Retreats 10 | . 3 1 5 . 1 Traps | -11 -10 -10 -9 -9 -9 ------- Run | Yrd Mat Min Mat Min Exi Traps Triggered 1 | . 1 . . . . Indirectly . | . . . . . . Trap Hack Attempts . | . . . . . . Triggered . | . . . . . . Disarmed . | . . . . . . Reprogrammed . | . . . . . . Reused . | . . . . . . Traps Extracted . | . . . . . . Installed . | . . . . . . Triggered . | . . . . . . Machines | -11 -10 -10 -9 -9 -9 ---------- Run | Yrd Mat Min Mat Min Exi Machines Disabled 7 | . 3 . 3 . 1 Max in Single Turn 1 | . 1 . 1 . 1 Machines Repaired . | . . . . . . Machines Dismantled . | . . . . . . Machines Sabotaged . | . . . . . . Overloaded Fab Kills . | . . . . . . Hacking | -11 -10 -10 -9 -9 -9 --------- Run | Yrd Mat Min Mat Min Exi Machines Accessed 20 | . 4 . 15 . 1 Terminals 14 | . 3 . 11 . . Fabricators . | . . . . . . Repair Stations 1 | . . . 1 . . Recycling Units 3 | . 1 . 2 . . Scanalyzers 1 | . . . 1 . . Garrison Access . | . . . . . . Total Hacks 73 | . 8 . 64 . 1 Successful 45 | . 4 . 40 . 1 Failed 28 | . 4 . 24 . . Catastrophic 2 | . . . 2 . . Database Lockouts . | . . . . . . Manual 29 | . 5 . 23 . 1 Terminals 47 | . 7 . 40 . . Fabricators . | . . . . . . Repair Stations 4 | . . . 4 . . Recycling Units 9 | . 1 . 8 . . Scanalyzers 12 | . . . 12 . . Garrison Access . | . . . . . . Terminal Hacks 18 | . 2 . 15 . 1 Robot Analysis 4 | . . . 4 . . Prototype ID Bank 2 | . . . 2 . . Branch Access Points 1 | . . . 1 . . Emergency Access Points 1 | . 1 . . . . Terminal Index 1 | . . . 1 . . Unreport Threat 1 | . . . 1 . . Locate Traps 3 | . 1 . 2 . . Security Status 1 | . . . 1 . . Registered Components 1 | . . . 1 . . Registered Prototypes 1 | . . . 1 . . Zone Layout 1 | . . . 1 . . Derelict Proto ID Bank 1 | . . . . . 1 Fabricator Hacks . | . . . . . . Repair Station Hacks 4 | . . . 4 . . Scan Component 2 | . . . 2 . . Repair 2 | . . . 2 . . Recycling Unit Hacks 3 | . . . 3 . . Report Inventory 2 | . . . 2 . . Retrieve Components 1 | . . . 1 . . Scanalyzer 12 | . . . 12 . . Insert Component 6 | . . . 6 . . Analyze 6 | . . . 6 . . Garrison Access Hacks . | . . . . . . Unauthorized Hacks 8 | . 2 . 6 . . Terminals 6 | . 1 . 5 . . Assimilate 1 | . . . 1 . . Botnet 4 | . 1 . 3 . . Operators 1 | . . . 1 . . Fabricators . | . . . . . . Repair Stations . | . . . . . . Recycling Units 2 | . 1 . 1 . . Reject 1 | . . . 1 . . Tunnel 1 | . 1 . . . . Scanalyzers . | . . . . . . Garrison Access . | . . . . . . Data Cores Recovered . | . . . . . . Used . | . . . . . . Hacking Detections 15 | . 3 . 12 . . Full Trace Events 9 | . 2 . 7 . . Feedback Events 1 | . . . 1 . . Corruption 1 | . . . 1 . . Feedback Blocked . | . . . . . . Robot Schematics Acquired . | . . . . . . Robots Built . | . . . . . . Authchips . | . . . . . . Time . | . . . . . . Total Robot Build Rating . | . . . . . . Part Schematics Acquired 6 | . . . 6 . . Parts Built . | . . . . . . Authchips . | . . . . . . Time . | . . . . . . Total Part Build Rating . | . . . . . . Parts Repaired 2 | . . . 2 . . Time 58 | . . . 58 . . Parts Recycled . | . . . . . . Recycled Matter . | . . . . . . Retrieved Matter . | . . . . . . Retrieved Components 2 | . . . 2 . . Parts Scanalyzed 6 | . . . 6 . . Part Schematics Acquired 6 | . . . 6 . . Parts Damaged . | . . . . . . Bothacking | -11 -10 -10 -9 -9 -9 ------------ Run | Yrd Mat Min Mat Min Exi Used RIF Installer . | . . . . . . Robots Hacked . | . . . . . . Non-combat . | . . . . . . Combat . | . . . . . . Robot Hacks Applied . | . . . . . . Relay Couplers Released . | . . . . . . Fabnet Peak Effective % . | . . . . . . Robots Rewired . | . . . . . . Allies Hacked . | . . . . . . Hacks Repelled . | . . . . . . Allies | -11 -10 -10 -9 -9 -9 -------- Run | Yrd Mat Min Mat Min Exi Total Allies 7 | . . 6 1 . . Largest Group 5 | . . 5 2 . . Highest-Rated Group 85 | . . 85 47 . . Highest-Rated Ally 31 | . . 31 31 . . Total Orders . | . . . . . . Ally Attacks 46 | . . 27 19 . . Total Damage 468 | . . 223 245 . . Kills 12 | . . 7 5 . . Allies Corrupted . | . . . . . . Allies Melted . | . . . . . . Intel | -11 -10 -10 -9 -9 -9 ------- Run | Yrd Mat Min Mat Min Exi Robot Analysis Total 4 | . . . 4 . . Derelict Logs Recovered . | . . . . . . Drone Launches . | . . . . . . Drone Recoveries . | . . . . . . Exploration | -11 -10 -10 -9 -9 -9 ------------- Run | Yrd Mat Min Mat Min Exi Turns Passed 4099 | 214 550 513 2047 375 400 Spaces Moved 2154 | 110 260 315 1007 224 238 Core 10 | 3 . 6 1 . . Treads 1685 | 107 260 33 850 224 211 Legs . | . . . . . . Wheels 322 | . . 139 156 . 27 Hover . | . . . . . . Flight 137 | . . 137 . . . Fastest Speed 50 | 50 160 80 80 160 90 Average Speed 149 | 157 160 128 149 160 152 Slowest Speed 400 | 160 160 200 400 160 160 Overloaded Moves . | . . . . . . Propulsion Burnouts . | . . . . . . Robots Hopped . | . . . . . . Cave-ins Triggered . | . . . . . . Exploration Rate (%) 50 | 5 49 67 79 47 54 Regions Visited 5 Branch Regions 3 Pre-discovered Areas 2 | . 1 . . 1 . Known Exits Taken 1 | . . . 1 . . Unknown Exits Taken 4 | 1 1 1 . 1 . Scrap Searched 1 | . . 1 . . . Spaces Dug 4 | . . . 4 . . Terrain Destroyed 34 | . 9 . 4 . 21 Melee 4 | . . . 4 . . Projectile . | . . . . . . AOE 30 | . 9 . . . 21 Terrain Rammed . | . . . . . . Walls Destroyed . | . . . . . . Machines Disabled . | . . . . . . Actions | -11 -10 -10 -9 -9 -9 --------- Run | Yrd Mat Min Mat Min Exi Total 2686 | 128 338 367 1364 229 260 Wait 286 | 1 48 18 219 . . Move 2149 | 109 259 314 1006 223 238 Hop . | . . . . . . Pick Up 14 | 2 3 . 8 . 1 Fast Attach 22 | 6 . 5 10 . 1 Attach 6 | . . 2 1 . 3 Detach 3 | . . 1 2 . . Swap 10 | . . . 10 . . Drop 17 | . . 1 12 . 4 Fire 162 | 10 28 26 79 6 13 Melee 17 | . . . 17 . . Ram . | . . . . . . Kick . | . . . . . . Crush . | . . . . . . Escape Stasis . | . . . . . . Rewire . | . . . . . . Trap . | . . . . . . Miscellaneous . | . . . . . . Route ------- -11/Scrapyard -10/Materials (discovered 2 exits: *Mat / *Min) -10/Mines -9/Materials (discovered 4 exits: [*Mat x2] / *Min x2) -9/Mines (discovered 2 exits: [*Mat] / *Exi) -9/Exiles History --------- Turn | Location | Event 3 | -11/Scrapyard | Discovered new exit (range 16) 215 | -11/Scrapyard | Entered Materials 311 | -10/Materials | Build established: Mutant 589 | -10/Materials | Discovered new exit (range 14) 635 | -10/Materials | Discovered new exit (range 14) 765 | -10/Materials | Entered Mines 816 | -10/Mines | Lost 3 parts (1n2w) 822 | -10/Mines | Assembled infested the area 829 | -10/Mines | Assisted by bots powering up and referring to "LRC-V3" 1002 | -10/Mines | Lost 3 allies 1119 | -10/Mines | Discovered new exit (range 13) 1228 | -10/Mines | Escorted by a lone wolf Derelict 1278 | -10/Mines | Entered Materials 1278 | -9/Materials | Accompanied by 2 allies 1278 | -9/Materials | Evolved 2 slots: Utility x2 1625 | -9/Materials | Build established: Scavenger-Mutant 1704 | -9/Materials | Discovered new exit (range 3) 2042 | -9/Materials | Identified exit to Mines 2042 | -9/Materials | Discovered new exit (range 16) 2593 | -9/Materials | Repaired Structural Scanner 2627 | -9/Materials | Repaired Imp. Ion Engine 3325 | -9/Materials | Entered Mines 3330 | -9/Mines | Core integrity fell below 50% 3393 | -9/Mines | Discovered new exit (range 15) 3466 | -9/Mines | Learned location of Storage (-8) 3694 | -9/Mines | Deemed a non-threat by the Exiles lab entrance 3694 | -9/Mines | Discovered new exit (range 5) 3700 | -9/Mines | Entered Exiles 3739 | -9/Exiles | Met 8R-AWN 3767 | -9/Exiles | Met EX-HEX 3812 | -9/Exiles | Met EX-BIN 3831 | -9/Exiles | Aligned with FarCom system 3833 | -9/Exiles | Given EX-Vault access code 3869 | -9/Exiles | Opened EX-Vault 3882 | -9/Exiles | Found Gui. Plasma Cannon 3891 | -9/Exiles | Found Longsword +1 3929 | -9/Exiles | Warned to stay clear of 0b10 Research branches 3938 | -9/Exiles | Exiles lab attacked by MAIN.C 4036 | -9/Exiles | Lost 7 allies 4055 | -9/Exiles | Build established: Mutant 4069 | -9/Exiles | Core integrity fell below 20% 4100 | -9/Exiles | Destroyed by P-60 Hacker with Shock Rifle Last Messages --------------- G-34 Mercenary destroyed. The unstable cave ceiling collapses. Penetrated by Slug. Slug penetrates G-34 Mercenary. Machine disabled. G-34 Mercenary destroyed. H-55 Commando destroyed. Penetrated by Slug. Pulse Rifle destroyed. Imp. Treads destroyed. Penetrated by Slug. Destroyed Targeting Computer. H-55 Commando destroyed. The unstable cave ceiling collapses. Imp. Ion Engine destroyed. System corrupted: FCS attempts to trigger Grenade Launcher. System corrupted: Grenade Launcher misfires. Machine disabled. P-60 Hacker destroyed. Map ----- +----------------------------------------------------+ | ????????????????????????????????????##" | | ????????????????????????????????????##" | | ????????????????????????????????????##" | | ????????????????????????????????????##" | | ????????????????????????????????????##" | | ????????????????????????????????????##" | | ????????????????????????????????????### | | ????????????????????????????????????### | | ?????????????????????????????????????##" "X" | | ?????????????????????????????????????##" """ | | ???????????????????????? ?????????###" """"" | | ????????????????????????" ????????####" ###### | | ????????????????????????# ?????######"" ###### | | ??????????????????????### ##??######"" ###??? | | ?????????????? """#####X# #"###""""""" ####?# | | ?????????????? """""" " "" ##### | | ????????????? "" """ " | | ????????????? " " | | ????????????? | | ?????????????# | | ??????????????# % | | ???????????????# !=[ | | ????????????????#" [pp | | ????????????????#""" """""" | | ???????????????##" ######"" | | ???????????????#"" @ ""###########""" | | ???????????????#""" """###???#######""" | | ???????????????""" """###????????###""" | | ???????????????"""t ""#?????????####"" | | ???????????????"" ##?????????###"""" | | ???????????????""" ?????????""" | | ????????????????" ???????"" | | ???????????????#"" ??? | | ???????????????#"""" ?? | | ????????????????# ? | | ?????????????????" " "" | | ?????????????????"""" ""?? ##""" " | | ?????????????????"" ""#??? ######"" | | ???????????????????? """"????????####### | | ???????????????????" ??????????????#### | | ?????????????????????? ?????????????????## | | ???????????????????????? ????????????????????? | | ?????????????????????????????????????????????????? | | ?????????????????????????????????????????????????? | | ?????????????????????????????????????????????????? | | ?????????????????????????????????????????????????? | | ?????????????????????????????????????????????????? | | ?????????????????????????????????????????????????? | | ?????????????????????????????????????????????????? | | ?????????????????????????????????????????????????? | +----------------------------------------------------+ Best States ------------- Heat Dissipation 50 Energy Generation 14 Energy Capacity 265 Matter Stores 300 Matter Capacity 300 Sight Range 16 Terrain Scan Density 10 Armor Coverage 150 Evasion (%) 44 Recoil Reduction 2 Offensive Hacking 10 Item Schematics ----------------- Mace | -9/Materials | Scanalyzed Arm. Wheel | -9/Materials | Scanalyzed Grenade Launcher | -9/Materials | Scanalyzed Pulse Rifle | -9/Materials | Scanalyzed Imp. Terrain Scanner | -9/Materials | Scanalyzed Lgt. Angular Momentum Engine | -9/Materials | Scanalyzed Robot Schematics ------------------ None Fabricated ------------ Nothing Alien Tech Used ----------------- None Achievements -------------- None Challenges ------------ None Game ------ Seed SeismicExperimentalScythe Manual? 0 Play Time 00:35:35 Cumulative 97.9 hours Start 2024.09.03 @ 16:53:54 End 2024.09.03 @ 17:26:37 Sessions 1 Manual Loads 0 Difficulty Rogue Special Mode None Game No. 91 Rogue 91 Adventurer 0 Explorer 0 Win Type - Total 0 Types 0/0/0/0/0/0/0/0/0 Lore% 36 Gallery% 50 Achievement% 38 Wizard Run 0 Options --------- Layout 2 ASCII 0 Keyboard 0 Movement Arrows Keybinds 0 Fullscreen 1 Font 16/Terminus Map View 55x47 Zoom Use 0% Tactical HUD 0 Map Filters NONE Filters NONE Steam 1 RUN: f595bf5b-e2b7-43c9-9333-305178d30b7c